Cogmind - Beta 15 @@@ ROGUE MODE // 2025.07.16 @ 04:41:19 Player: Carpathian Result: Destroyed by G-47 Trooper with Particle Gun Performance ------------- Evolutions (2) 1000 Regions Visited (4) 800 Robots Destroyed (82) 410 Value Destroyed (2582) 2582 Prototype IDs (5) 100 Alien Tech Used (0) 0 Bonus (22) 22 TOTAL SCORE: 4914 Bonus ------- High Alert Combat Kills 22 Cogmind --------- Core Integrity 0/550 Matter 129/300 Energy 15/265 System Corruption 1% Temperature Cool (20) Movement Core (650) Ox12 Location -8/Storage Parts ------- > --- POWER (1) -------- Improved Ion Engine > --- PROPULSION (2) --- (None) > --- UTILITY (6) ------ Large Storage Unit Visual Processing Unit Advanced Targeting Computer ECM Suite > --- WEAPON (2) ------- Heavy Particle Gun Advanced EMP Blaster > --- INVENTORY (15) --- Heavy Ion Engine Huge Storage Unit Advanced Targeting Computer Light Armor Plating Light Armor Plating Authchip [Device] Authchip [Device] Heavy Particle Gun Improved Grenade Launcher Datajack Peak State ------------ > --- POWER ------------ Light Ion Engine > --- PROPULSION ------- Light Treads > --- UTILITY ---------- Large Storage Unit Machine Analyzer Visual Processing Unit ECM Suite Heavy Armor Plating > --- WEAPON ----------- Minigun Minigun > --- INVENTORY -------- Light Deuterium Engine Huge Storage Unit Beam Rifle Improved Grenade Launcher Datajack [Rating: 22] Favorites ----------- Power Ion Engine Engine Ion Engine Power Core Light Nuclear Core Propulsion Light Treads Treads Light Treads Leg Aluminum Leg Utility Visual Processing Unit Device ECM Suite Storage Large Storage Unit Processor Visual Processing Unit Protection Heavy Armor Plating Weapon Minigun Energy Gun Medium Laser Energy Cannon Improved EM Pulse Cannon Ballistic Gun Minigun Ballistic Cannon Improved Light Cannon Launcher Grenade Launcher Build | -11 -10 -9 -8 -8 ------- Run | Yrd Mat Mat Mat Sto Slots Evolved 4 | . . 2 2 . Power . | . . . . . Propulsion . | . . . . . Utility 4 | . . 2 2 . Weapon . | . . . . . Parts Attached 55 | 6 6 10 20 13 Power 10 | 1 2 1 3 3 Engine 8 | 1 2 1 3 1 Core 2 | . . . . 2 Reactor . | . . . . . Propulsion 13 | 2 2 4 2 3 Treads 7 | 2 . 1 1 3 Leg 6 | . 2 3 1 . Wheel . | . . . . . Hover . | . . . . . Flight . | . . . . . Utility 8 | 1 1 1 4 1 Device 1 | . . . 1 . Storage 3 | 1 . 1 1 . Processor 3 | . 1 . 1 1 Hackware . | . . . . . Protection 1 | . . . 1 . Artifact . | . . . . . Weapon 24 | 2 1 4 11 6 Energy Gun 6 | 1 . . 3 2 Energy Cannon 5 | . 1 . 4 . Ballistic Gun 7 | 1 . 1 3 2 Ballistic Cannon 4 | . . 2 1 1 Launcher 2 | . . 1 . 1 Special Weapon . | . . . . . Impact Weapon . | . . . . . Slashing Weapon . | . . . . . Piercing Weapon . | . . . . . Special Melee Weapon . | . . . . . Unidentified Prototypes 5 | . . . . 5 Parts Lost 19 | . . 4 8 7 Power 4 | . . 1 1 2 Propulsion 8 | . . 2 3 3 Utility 2 | . . . 2 . Weapon 5 | . . 1 2 2 Highest Loss Streak 5 | . . 3 2 5 To Critical Strikes 1 | . . . 1 . Average Backups 7 | 1 4 6 6 10 Power 1 | . . . 1 1 Propulsion . | 1 1 . . . Utility 2 | . . 1 1 4 Weapon 2 | . 1 3 2 3 Tool/Special . | . . . . . Unused Backups 10 | . . 1 . 9 Power 2 | . . . . 2 Propulsion 1 | . . 1 . . Utility 5 | . . . . 5 Weapon 1 | . . . . 1 Tool/Special 1 | . . . . 1 Average Slot Usage (%) 69 | . 85 72 62 70 Engine 8 | . 14 9 8 6 Treads 10 | . 21 . 4 17 Leg 6 | . 6 18 7 . Device 3 | . . . 2 6 Storage 10 | . 14 11 9 9 Processor 9 | . . 11 11 11 Energy Gun 5 | . 14 7 3 2 Energy Cannon 2 | . 3 3 3 . Ballistic Gun 7 | . 10 3 7 9 Ballistic Cannon 3 | . . 5 2 5 Peak Build Rating 22 | 6 8 10 22 22 Average Rating 12 | 4 6 8 13 17 On Entrance 7 | . 6 8 10 12 Naked Turns . | . . . . . Heaviest Build 46 | 13 15 22 46 38 Greatest Support 40 | 40 40 20 40 40 Greatest Overweight (x) 12 | . . 5 12 11 Average Overweight (x) . | . . . 1 . Largest Inventory Capacity 15 | 8 8 10 15 15 Average Capacity 12 | 6 8 8 14 15 Most Carried 14 | 3 7 8 10 14 Average Carried 7 | 1 4 6 6 10 Final Capacity 15 | 8 8 10 15 15 Final Carried 10 | 3 4 6 7 10 Class Distribution -------------------- 62% | Mutant 37% | Scavenger-Mutant Dominant Class ---------------- Mutant | -10/Materials Mutant | -9/Materials Mutant | -8/Materials Scavenger-Mutant | -8/Storage Resources | -11 -10 -9 -8 -8 ----------- Run | Yrd Mat Mat Mat Sto Matter Collected 1759 | 186 107 222 628 616 Remotely . | . . . . . Salvage Created 3011 | . 354 532 840 1285 Parts 152 | . 17 34 49 52 Haulers Intercepted 2 | . . . 1 1 Recyclers Shooed 4 | . . 1 . 3 Parts Field Recycled . | . . . . . Retrieved Matter . | . . . . . Parts Self-Destructed . | . . . . . Prevented . | . . . . . Kills | -11 -10 -9 -8 -8 ------- Run | Yrd Mat Mat Mat Sto Combat Hostiles Destroyed 64 | . 9 17 18 20 Guns 33 | . 7 7 10 9 Cannons 25 | . 2 7 8 8 AOE 6 | . . 3 . 3 Classes Destroyed 10 | . 2 3 4 1 Worker 4 | . . . 1 3 Builder 2 | . . . . 2 Hauler 2 | . . . 1 1 Recycler 6 | . . 1 2 3 Watcher 4 | . 1 2 . 1 Swarmer 13 | . . 4 7 2 Grunt 42 | . 9 12 8 13 Brawler 1 | . . 1 . . Sentry 7 | . . . 2 5 Hunter 1 | . . . 1 . Best Kill Streak 11 | . 3 7 4 11 Combat Bots Only 6 | . 2 6 4 5 Max Kills in Single Turn 3 | . 2 3 2 3 Gunslinging 1 | . 1 . . . Exploded 3 | . . 3 . 3 Melee . | . . . . . Uniques/NPCs Destroyed . | . . . . . Combat | -11 -10 -9 -8 -8 -------- Run | Yrd Mat Mat Mat Sto Hostile Shots Fired 465 | . 59 100 183 123 Missed 130 | . 15 23 62 30 Hits 335 | . 44 77 121 93 Projectile 335 | . 44 77 121 93 Critical Strikes 13 | . 2 1 6 4 Damage Taken 4554 | . 524 915 1588 1527 Core 913 | . 112 235 261 305 Absorbed by Shields . | . . . . . Core Remaining (%) 65 | 100 55 41 . . Volleys Fired 259 | . 40 63 73 83 Largest 2 | . 2 2 2 2 Hottest 138 | . 110 110 138 78 Shots Fired 476 | . 80 112 129 155 Gun 307 | . 77 63 71 96 Cannon 165 | . 3 47 58 57 Launcher 4 | . . 2 . 2 Special . | . . . . . Kinetic 310 | . 37 59 72 142 Thermal 127 | . 43 51 22 11 Explosive 2 | . . 2 . . Electromagnetic 37 | . . . 35 2 Robot Hit Streak 19 | . 13 8 7 19 Robot Miss Streak 6 | . 2 6 5 4 Penetration Max . | . . . . . Secondary Targets 3 | . 1 . 2 . Max Gunslinging Chain 1 | . 1 . 1 . Shots Hit Robots 300 | . 52 65 76 107 Core Hits 131 | . 18 30 29 54 Critical Kills . | . . . . . Critical Parts Destroyed . | . . . . . Critical Strikes 9 | . 1 3 3 2 Burn 5 | . 1 3 1 . Blast 4 | . . . 2 2 Melee Attacks . | . . . . . Impact . | . . . . . Slashing . | . . . . . Piercing . | . . . . . Sneak Attacks . | . . . . . Combat Hostiles . | . . . . . Follow-up Attacks . | . . . . . Damage Inflicted 6012 | . 548 1362 1624 2478 Guns 2820 | . 495 583 699 1043 Cannons 2430 | . 53 489 925 963 Explosions 762 | . . 290 . 472 Melee . | . . . . . Ramming . | . . . . . Kinetic 3662 | . 193 707 888 1874 Thermal 1139 | . 355 365 156 263 Explosive 290 | . . 290 . . Electromagnetic 921 | . . . 580 341 Impact . | . . . . . Slashing . | . . . . . Piercing . | . . . . . Highest Corruption 1 | . . . . 1 Average Corruption 1 | . . . . 1 Corruption Purged . | . . . . . Corruption Blocked . | . . . . . Overload Shots . | . . . . . Overflow Damage 69 | . . 7 28 34 Projectiles 63 | . . 7 28 28 Explosions 6 | . . . . 6 Melee . | . . . . . Knockbacks 20 | . . 7 3 10 Impact . | . . . . . Kinetic 17 | . . 6 2 9 Secondary 3 | . . 1 1 1 Self-Inflicted Damage 127 | . . 49 . 78 Shots 5 | . . 2 . 3 Rammed 1 | . . . 1 . Targets Rammed 1 | . . . 1 . Kicked . | . . . . . Crushed . | . . . . . Highest Temperature 427 | . 308 427 180 81 Average Temperature 84 | . 102 160 43 24 Received Heat Transfer 2052 | . 330 399 531 792 Effects 3 | . . 3 . . Shutdowns 1 | . . 1 . . Interference 1 | . . 1 . . Short Circuit 1 | . . 1 . . Siege Activations . | . . . . . Martial Activations . | . . . . . Shielding Activations . | . . . . . Robots Disrupted . | . . . . . Combat Hostiles . | . . . . . Robots Corrupted . | . . . . . Combat Hostiles . | . . . . . Parts Fried 2 | . . . 1 1 Impact Corruptions . | . . . . . Robots Melted . | . . . . . Combat Hostiles . | . . . . . Parts Melted 5 | . 2 2 1 . Heat Transferred 3225 | . 1073 1295 448 409 Parts Sabotaged . | . . . . . Parts Stolen . | . . . . . Parts Stripped . | . . . . . Power Chain Reactions 2 | . . . . 2 Alert | -11 -10 -9 -8 -8 ------- Run | Yrd Mat Mat Mat Sto Maximum Alert Level 2 | . . 1 . 2 Low Security (%) 96 | 100 100 77 100 96 Level 1 3 | . . 22 . 3 Level 2 . | . . . . . Level 3 . | . . . . . Level 4 . | . . . . . Level 5 . | . . . . . High Security . | . . . . . Max Security . | . . . . . Peak Influence 429 | . 110 310 124 429 Initial 124 | . . 33 124 5 Average 58 | . 40 143 54 41 Influence Increases 2008 | . 233 511 477 787 Destroy 0b10 Robot/C 1280 | . 180 340 360 400 Destroy 0b10 Robot/NC 95 | . 5 15 20 55 Destroy Leader 272 | . 42 54 72 104 Successful Hack 22 | . 6 . 8 8 Disable Machine 105 | . . 60 . 45 Anti-Garrison Action 150 | . . . . 150 Destroy Structure 39 | . . 12 2 25 Lose Combat Pursuer 45 | . . 30 15 . Influence Decreases 1579 | . 154 296 758 371 Entered New Map 224 | . . 46 170 8 Time Decay 1167 | . 154 210 510 293 Lost Part 188 | . . 40 78 70 Squads Dispatched 14 | . 3 1 2 8 Investigation 4 | . 2 1 . 1 Extermination . | . . . . . Reinforcement 5 | . 1 . 2 2 Assault 2 | . . . . 2 Garrison 3 | . . . . 3 Intercept . | . . . . . Searches Triggered . | . . . . . Construction Impeded 1 | . . . . 1 Haulers Reinforced . | . . . . . Active Scanning Responses . | . . . . . Cargo Convoy Interrupts . | . . . . . Stealth | -11 -10 -9 -8 -8 --------- Run | Yrd Mat Mat Mat Sto Distress Signals 4 | . . 2 1 1 Communications Jammed . | . . . . . Distress Signals . | . . . . . Times Spotted 102 | . 10 25 27 40 Peak Tracking Total 7 | . 3 6 5 7 Tactical Retreats 9 | . . 1 1 7 Traps | -11 -10 -9 -8 -8 ------- Run | Yrd Mat Mat Mat Sto Traps Triggered 4 | . 2 1 . 1 Indirectly 1 | . . . . 1 Trap Hack Attempts . | . . . . . Triggered . | . . . . . Disarmed . | . . . . . Reprogrammed . | . . . . . Reused . | . . . . . Traps Extracted . | . . . . . Installed . | . . . . . Triggered . | . . . . . Machines | -11 -10 -9 -8 -8 ---------- Run | Yrd Mat Mat Mat Sto Machines Disabled 8 | . . 4 . 4 Max in Single Turn 1 | . . 1 . 1 Garrison Access 1 | . . . . 1 Machines Repaired . | . . . . . Machines Dismantled . | . . . . . Machines Sabotaged . | . . . . . Overloaded Fab Kills . | . . . . . Hacking | -11 -10 -9 -8 -8 --------- Run | Yrd Mat Mat Mat Sto Machines Accessed 9 | . 1 . 3 5 Terminals 8 | . 1 . 3 4 Fabricators . | . . . . . Repair Stations 1 | . . . . 1 Recycling Units . | . . . . . Scanalyzers . | . . . . . Garrison Access . | . . . . . Total Hacks 18 | . 3 . 3 12 Successful 12 | . 3 . 2 7 Failed 6 | . . . 1 5 Catastrophic 1 | . . . . 1 Database Lockouts . | . . . . . Manual . | . . . . . Terminals 15 | . 3 . 3 9 Fabricators . | . . . . . Repair Stations 3 | . . . . 3 Recycling Units . | . . . . . Scanalyzers . | . . . . . Garrison Access . | . . . . . Terminal Hacks 10 | . 3 . 2 5 Record 6 | . 3 . 1 2 Open Door 1 | . . . . 1 Level Access Points 1 | . . . 1 . Emergency Access Points 2 | . . . . 2 Fabricator Hacks . | . . . . . Repair Station Hacks 2 | . . . . 2 Scan Component 1 | . . . . 1 Repair 1 | . . . . 1 Recycling Unit Hacks . | . . . . . Scanalyzer . | . . . . . Garrison Access Hacks . | . . . . . Unauthorized Hacks . | . . . . . Terminals . | . . . . . Fabricators . | . . . . . Repair Stations . | . . . . . Recycling Units . | . . . . . Scanalyzers . | . . . . . Garrison Access . | . . . . . Data Cores Recovered . | . . . . . Used . | . . . . . Hacking Detections 3 | . . . . 3 Full Trace Events 1 | . . . . 1 Feedback Events . | . . . . . Feedback Blocked . | . . . . . Robot Schematics Acquired . | . . . . . Robots Built . | . . . . . Authchips . | . . . . . Time . | . . . . . Total Robot Build Rating . | . . . . . Part Schematics Acquired . | . . . . . Parts Built . | . . . . . Authchips . | . . . . . Time . | . . . . . Total Part Build Rating . | . . . . . Parts Repaired . | . . . . . Time 51 | . . . . 51 Parts Recycled . | . . . . . Recycled Matter . | . . . . . Retrieved Matter . | . . . . . Retrieved Components . | . . . . . Parts Scanalyzed . | . . . . . Part Schematics Acquired . | . . . . . Parts Damaged . | . . . . . Bothacking | -11 -10 -9 -8 -8 ------------ Run | Yrd Mat Mat Mat Sto Used RIF Installer . | . . . . . Robots Hacked . | . . . . . Non-combat . | . . . . . Combat . | . . . . . Robot Hacks Applied . | . . . . . Relay Couplers Released 3 | . . . . 3 Machine Destruction 3 | . . . . 3 Fabnet Peak Effective % . | . . . . . Robots Rewired . | . . . . . Allies Hacked . | . . . . . Hacks Repelled . | . . . . . Allies | -11 -10 -9 -8 -8 -------- Run | Yrd Mat Mat Mat Sto Total Allies . | . . . . . Largest Group . | . . . . . Highest-Rated Group . | . . . . . Highest-Rated Ally . | . . . . . Total Orders . | . . . . . Ally Attacks . | . . . . . Total Damage . | . . . . . Kills . | . . . . . Allies Corrupted . | . . . . . Allies Melted . | . . . . . Intel | -11 -10 -9 -8 -8 ------- Run | Yrd Mat Mat Mat Sto Active Infowar (turns) 3307 | . 35 494 1616 1162 Optics 3307 | . 35 494 1616 1162 Machine Analysis 417 | . . . 417 . ECM 1311 | . . . 440 871 Robot Analysis Total . | . . . . . Derelict Logs Recovered . | . . . . . Drone Launches . | . . . . . Drone Recoveries . | . . . . . Exploration | -11 -10 -9 -8 -8 ------------- Run | Yrd Mat Mat Mat Sto Turns Passed 3965 | 90 603 494 1616 1162 Spaces Moved 1437 | 60 277 178 501 421 Core 35 | 18 . 2 14 1 Treads 826 | 42 165 8 191 420 Legs 576 | . 112 168 296 . Wheels . | . . . . . Hover . | . . . . . Flight . | . . . . . Fastest Speed 50 | 50 120 120 160 160 Average Speed 183 | 127 143 151 241 161 Slowest Speed 650 | 160 160 300 650 600 Overloaded Moves . | . . . . . Propulsion Burnouts . | . . . . . Robots Hopped . | . . . . . Potential Cave-ins . | . . . . . Cave-ins Triggered . | . . . . . Exploration Rate (%) 27 | 4 30 19 31 51 Regions Visited 4 Branch Regions 1 Pre-discovered Areas . | . . . . . Known Exits Taken . | . . . . . Unknown Exits Taken 4 | 1 1 1 1 . Scrap Searched . | . . . . . Spaces Dug . | . . . . . Terrain Destroyed 28 | . . 9 1 18 Melee . | . . . . . Projectile 9 | . . 2 1 6 AOE 19 | . . 7 . 12 Terrain Rammed . | . . . . . Walls Destroyed . | . . . . . Machines Disabled . | . . . . . Actions | -11 -10 -9 -8 -8 --------- Run | Yrd Mat Mat Mat Sto Total 2326 | 74 409 296 782 765 Wait 465 | . 75 28 148 214 Move 1433 | 59 276 177 500 421 Hop . | . . . . . Pick Up 69 | 9 7 12 23 18 Fast Attach . | . . . . . Attach 28 | 6 1 4 9 8 Detach . | . . . . . Swap 37 | . 5 6 14 12 Drop 32 | . 5 6 14 7 Fire 259 | . 40 63 73 83 Melee . | . . . . . Ram 1 | . . . 1 . Kick . | . . . . . Crush . | . . . . . Escape Stasis . | . . . . . Rewire 2 | . . . . 2 Trap . | . . . . . Miscellaneous . | . . . . . Route ------- -11/Scrapyard -10/Materials -9/Materials -8/Materials (discovered 4 exits: Fac x3 / *Sto) -8/Storage History --------- Turn | Location | Event 5 | -11/Scrapyard | Discovered new exit (range 15) 91 | -11/Scrapyard | Entered Materials 301 | -10/Materials | Build established: Mutant 673 | -10/Materials | Discovered new exit (range 13) 694 | -10/Materials | Entered another Materials area 694 | -9/Materials | Evolved 2 slots: Utility x2 1084 | -9/Materials | Core integrity fell below 50% 1111 | -9/Materials | Lost 3 parts (1p1n1w) 1150 | -9/Materials | Discovered new exit (range 18) 1188 | -9/Materials | Entered another Materials area 1188 | -8/Materials | Evolved 2 slots: Utility x2 1240 | -8/Materials | Identified exit to Factory 1405 | -8/Materials | Build established: Scavenger-Mutant 2191 | -8/Materials | Build established: Mutant 2662 | -8/Materials | Discovered new exit (range 13) 2804 | -8/Materials | Entered Storage 2928 | -8/Storage | Garrison activated, responded to threat 3049 | -8/Storage | Build established: Scavenger-Mutant 3520 | -8/Storage | Core integrity fell below 50% 3782 | -8/Storage | Garrison activated, responded to threat 3948 | -8/Storage | Core integrity fell below 20% 3966 | -8/Storage | Destroyed by G-47 Trooper with Particle Gun Last Messages --------------- 03946_ G-47 Trooper knocked back. 03948_ K-01 Serf collects debris. 03950_ G-47 Trooper knocked back. 03952_ Assault Cannon destroyed. 03955_ Critical hit (Burn: +37). 03960_ ALERT: Garrison Access compromised, dispatching multiple assault carriers. 03960_ Destroyed Med. Matter Pod. 03960_ Chain reaction triggered in Corrupted Lgt. Ion Engine. 03960_ Critical hit (Burn: +37). 03963_ K-01 Serf cleans the Transfer Shaft. 03964_ Transfer Shaft disabled. 03964_ G-47 Trooper IFF system glitched. 03965_ G-50 Soldier destroyed. 03965_ Lgt. Nuclear Core fried. 03965_ G-47 Trooper destroyed. 03965_ Stasis Trap short circuited. 03965_ Chain reaction triggered in Corrupted Lgt. Nuclear Core. 03965_ G-47 Trooper destroyed. 03965_ A bubble of rippling energy engulfs the area. Map ----- +----------------------------------------------------+ | ???????????????????#"" """ ## #???# #?? | | ???????????????????###!!! ## #???# #?? | | ?????????????????????# !! """## #???# % ##? | | ?????????????????????# ! [ R"#? #???# = ## | | ?????????????????????# % = ""## #???#####+####### | | ?????????????????????# %[ " #???????# #????#" | | ?????????????????????##"##+##+# #??????## ##???#T | | ??????????????????????#??#! ######## #####" | | ????????????????????????##%%*! % T ## | | ????????????????????????##!############## ### ## | | ????????????????????????##%# #?????#####?# ## | | ???????????????????????###+# #????######## | | ???????????????????????# + ###### | | ???????????????????????# *!# + | | ???????????????????????#|*[# # | | ???????????????????????# *%# # | | ???????????????????????# % ####+### | | ???????????????????????# * / | | ???????????????????????# ]%# #########+## | | ???????????##############;## ##/##?????????! | | ???????????# %+*%| + ????????????? | | ???????????# #g#####+###??????????????? | | ???????????# #%# #??????????????? | | ???????????# # """ #??????+??+????? | | ???????????# "" #??????????????? | | ???????????###+######;;;%@ "" #??????????????? | | ???????? g ! %%g k #??????????????? | | ???????? # =%#########??????????????? | | ??????????######+???# # g% #?????????????????? | | ????????????????????#?# % " #?????????????????? | | ??????????????????????# "G" #?????????????????? | | ??????????????????????# " " #?????????????????? | | ??????????????????????# % #????????#####????? | | ??????????????????????#% """ #????????#!! #????? | | ??????????????????????#k %""" #????????# !!#????? | | ??????????????????????# % %""" #????????# ##???? | | ????????????????####### *% #????????# T#???? | | ????????????????# ####+################+###### | | ????????""" # % !%%! | | ???????# + % *% % % | | ????????""" # [ = | | ????????????????# % ####+#########+############# | | ????????????????#######???????????# #??? | | ???????????????????????????????#""" """ """ #??? | | ???????????????????????????????#"Y """ """ #??? | | ???????????????????????????????#""" """ """ #??? | | ???????????????????????????????#### #??? | | ??????????????????????????????????# #??? | | ??????????????????????????????????# #??? | | ??????????????????????????????????#############??? | +----------------------------------------------------+ Best States ------------- Heat Dissipation 31 Energy Generation 16 Energy Capacity 290 Matter Stores 300 Matter Capacity 300 Sight Range 18 Terrain Scan Density 10 ECM Strength 1 Armor Coverage 600 Evasion (%) 55 Targeting Accuracy 8 Recoil Reduction 2 Authchip Count 2 Item Schematics ----------------- None Robot Schematics ------------------ None Fabricated ------------ Nothing Repaired ---------- Nothing Alien Tech Used ----------------- None Achievements -------------- None Challenges ------------ None Game ------ Seed WardroneLargeShell Manual? 0 Play Time 00:24:24 Cumulative 33.8 hours Start 2025.07.16 @ 04:19:27 End 2025.07.16 @ 04:41:19 Sessions 1 Manual Loads 0 Difficulty Rogue Special Mode None Game No. 181 Rogue 181 Adventurer 0 Explorer 0 Win Type - Total 0 Types 0/0/0/0/0/0/0/0/0/0 Lore% 10 Gallery% 24 Achievement% 19 Wizard Run 0 Options --------- Layout 0 ASCII 0 Keyboard 0 Movement Arrows Keybinds 0 Fullscreen 2 Font 24/Cog Map View 76x50 Zoom Use 0% Tactical HUD 1 Map Filters NONE Filters NONE Steam 1 RUN: 4d7af096-2000-4e78-bfa2-87b038cb53ed